[Event "Titled Tuesday Blitz March 07 Early 2023"]
[White "Moksh Amit Doshi"]
[Black "Shubenkova, Veronika"]
[WhiteFideId "25064967"]
[BlackFideId "44124040"]
[WhiteElo "2297"]
[BlackElo "2027"]
[Result "0-1"]
[Round "10"]
[TimeControl "180+2"]
[Date "2023.03.07"]
[WhiteClock "0:01:04"]
[BlackClock "0:01:36"]

1. e4 {[%clk 0:03:00]}  e6 {[%clk 0:02:51]} 2. d4 {[%clk 0:03:00]}  d5 {[%clk 0:02:52]} 3. Nc3 {[%clk 0:03:01]}  Nf6 {[%clk 0:02:52]} 4. e5 {[%clk 0:03:01]}  Nfd7 {[%clk 0:02:52]} 5. f4 {[%clk 0:03:02]}  c5 {[%clk 0:02:52]} 6. Nf3 {[%clk 0:03:03]}  cxd4 {[%clk 0:02:52]} 7. Nxd4 {[%clk 0:03:02]}  Nc6 {[%clk 0:02:52]} 8. Be3 {[%clk 0:03:01]}  Bc5 {[%clk 0:02:52]} 9. Qd2 {[%clk 0:03:00]}  a6 {[%clk 0:02:52]} 10. O-O-O {[%clk 0:03:01]}  Nxd4 {[%clk 0:02:52]} 11. Bxd4 {[%clk 0:03:01]}  b5 {[%clk 0:02:53]} 12. h4 {[%clk 0:02:55]}  Qb6 {[%clk 0:02:52]} 13. h5 {[%clk 0:02:47]}  Bb7 {[%clk 0:02:51]} 14. h6 {[%clk 0:02:44]}  g6 {[%clk 0:02:51]} 15. Bxc5 {[%clk 0:02:40]}  Nxc5 {[%clk 0:02:51]} 16. Qd4 {[%clk 0:02:41]}  O-O-O {[%clk 0:02:50]} 17. g4 {[%clk 0:02:36]}  b4 {[%clk 0:02:48]} 18. Ne2 {[%clk 0:02:36]}  a5 {[%clk 0:02:48]} 19. Bh3 {[%clk 0:02:32]}  Kb8 {[%clk 0:02:48]} 20. Kb1 {[%clk 0:02:27]}  Rd7 {[%clk 0:02:44]} 21. Nc1 {[%clk 0:02:25]}  Rc8 {[%clk 0:02:44]} 22. Rh2 {[%clk 0:02:24]}  Rdc7 {[%clk 0:02:44]} 23. Nb3 {[%clk 0:02:19]}  a4 {[%clk 0:02:44]} 24. Nc1 {[%clk 0:02:09]}  Qa5 {[%clk 0:02:44]} 25. f5 {[%clk 0:02:07]}  gxf5 {[%clk 0:02:43]} 26. gxf5 {[%clk 0:02:07]}  a3 {[%clk 0:02:43]} 27. b3 {[%clk 0:02:04]}  Ne4 {[%clk 0:02:43]} 28. Re1 {[%clk 0:01:57]}  Rc6 {[%clk 0:02:27]} 29. fxe6 {[%clk 0:01:56]}  fxe6 {[%clk 0:02:27]} 30. Nd3 {[%clk 0:01:54]}  Rb6 {[%clk 0:02:16]} 31. Rg2 {[%clk 0:01:45]}  Ba6 {[%clk 0:02:16]} 32. Rg7 {[%clk 0:01:39]}  Bxd3 {[%clk 0:02:15]} 33. Qxd3 {[%clk 0:01:34]}  Qc5 {[%clk 0:02:13]} 34. Bg2 {[%clk 0:01:24]}  Nc3+ {[%clk 0:02:08]} 35. Ka1 {[%clk 0:01:24]}  Nb5 {[%clk 0:02:06]} 36. Rxh7 {[%clk 0:01:21]}  Qf2 {[%clk 0:02:00]} 37. Qe3 {[%clk 0:01:10]}  Qxe3 {[%clk 0:01:54]} 38. Rxe3 {[%clk 0:01:11]}  Rxc2 {[%clk 0:01:54]} 39. Re1 {[%clk 0:01:09]}  Rxg2 {[%clk 0:01:52]} 40. Rg7 {[%clk 0:01:08]}  Rh2 {[%clk 0:01:38]} 41. h7 {[%clk 0:01:06]}  Nc3 {[%clk 0:01:37]} 42. Rg8+ {[%clk 0:01:03]}  Ka7 {[%clk 0:01:37]} 43. h8=Q {[%clk 0:01:04]}  Rxa2# {[%clk 0:01:36]} 0-1


[Site "https://www.chess.com"]

[Event "Titled Tuesday Blitz March 07 Early 2023"]
[White "Zhukova, Natalia"]
[Black "Santos Flores, Alberto"]
[WhiteFideId "14101513"]
[BlackFideId "3601234"]
[WhiteElo "2297"]
[BlackElo "2235"]
[Result "1-0"]
[Round "10"]
[TimeControl "180+2"]
[Date "2023.03.07"]
[WhiteClock "0:00:23"]
[BlackClock "0:02:04"]

1. c4 {[%clk 0:03:00]}  c5 {[%clk 0:02:58]} 2. Nf3 {[%clk 0:03:00]}  Nc6 {[%clk 0:02:58]} 3. d4 {[%clk 0:03:00]}  cxd4 {[%clk 0:02:59]} 4. Nxd4 {[%clk 0:03:01]}  g6 {[%clk 0:03:00]} 5. e4 {[%clk 0:03:00]}  Nf6 {[%clk 0:03:00]} 6. Nc3 {[%clk 0:02:59]}  d6 {[%clk 0:03:00]} 7. Be2 {[%clk 0:02:58]}  Nxd4 {[%clk 0:02:57]} 8. Qxd4 {[%clk 0:02:58]}  Bg7 {[%clk 0:02:58]} 9. Be3 {[%clk 0:02:57]}  O-O {[%clk 0:02:57]} 10. Qd2 {[%clk 0:02:58]}  Be6 {[%clk 0:02:57]} 11. Rc1 {[%clk 0:02:54]}  Qa5 {[%clk 0:02:58]} 12. f3 {[%clk 0:02:50]}  Rfc8 {[%clk 0:02:58]} 13. b3 {[%clk 0:02:49]}  a6 {[%clk 0:02:58]} 14. Na4 {[%clk 0:02:46]}  Qxd2+ {[%clk 0:02:59]} 15. Kxd2 {[%clk 0:02:46]}  Nd7 {[%clk 0:03:00]} 16. f4 {[%clk 0:02:38]}  Rab8 {[%clk 0:02:58]} 17. g4 {[%clk 0:02:32]}  f5 {[%clk 0:02:49]} 18. exf5 {[%clk 0:02:23]}  gxf5 {[%clk 0:02:50]} 19. g5 {[%clk 0:02:24]}  Nc5 {[%clk 0:02:44]} 20. Nxc5 {[%clk 0:02:13]}  dxc5 {[%clk 0:02:45]} 21. Bf3 {[%clk 0:02:07]}  b6 {[%clk 0:02:39]} 22. Rhe1 {[%clk 0:02:03]}  Kf7 {[%clk 0:02:38]} 23. Bh5+ {[%clk 0:01:43]}  Kf8 {[%clk 0:02:37]} 24. Bxc5 {[%clk 0:01:44]}  Rxc5 {[%clk 0:02:35]} 25. Rxe6 {[%clk 0:01:44]}  b5 {[%clk 0:02:35]} 26. Rxa6 {[%clk 0:01:32]}  bxc4 {[%clk 0:02:35]} 27. Rxc4 {[%clk 0:01:32]}  Rxc4 {[%clk 0:02:35]} 28. bxc4 {[%clk 0:01:33]}  Bd4 {[%clk 0:02:30]} 29. Kd3 {[%clk 0:01:29]}  Bc5 {[%clk 0:02:29]} 30. Ra5 {[%clk 0:01:21]}  Rd8+ {[%clk 0:02:23]} 31. Kc2 {[%clk 0:01:16]}  Rc8 {[%clk 0:02:22]} 32. Bf3 {[%clk 0:01:14]}  e6 {[%clk 0:02:21]} 33. Kd3 {[%clk 0:00:48]}  Rd8+ {[%clk 0:02:19]} 34. Ke2 {[%clk 0:00:49]}  Rc8 {[%clk 0:02:19]} 35. Ra8 {[%clk 0:00:44]}  Rxa8 {[%clk 0:02:16]} 36. Bxa8 {[%clk 0:00:45]}  Ke7 {[%clk 0:02:16]} 37. a4 {[%clk 0:00:44]}  Bb6 {[%clk 0:02:15]} 38. h4 {[%clk 0:00:40]}  Kf7 {[%clk 0:02:14]} 39. h5 {[%clk 0:00:40]}  Ke7 {[%clk 0:02:12]} 40. Bb7 {[%clk 0:00:40]}  Kf7 {[%clk 0:02:11]} 41. Bc8 {[%clk 0:00:40]}  Ke7 {[%clk 0:02:10]} 42. Kd3 {[%clk 0:00:36]}  Kf7 {[%clk 0:02:09]} 43. Kc3 {[%clk 0:00:30]}  Be3 {[%clk 0:02:07]} 44. a5 {[%clk 0:00:29]}  Bxf4 {[%clk 0:02:07]} 45. a6 {[%clk 0:00:29]}  Be3 {[%clk 0:02:06]} 46. Kb4 {[%clk 0:00:28]}  Ba7 {[%clk 0:02:06]} 47. Kb5 {[%clk 0:00:24]}  f4 {[%clk 0:02:05]} 48. Bb7 {[%clk 0:00:24]}  e5 {[%clk 0:02:04]} 49. Be4 {[%clk 0:00:23]} 1-0


[Site "https://www.chess.com"]

[Event "Titled Tuesday Blitz March 07 Early 2023"]
[White "Szyszylo, Rafal"]
[Black "Bilan, Danila"]
[WhiteFideId "1109626"]
[BlackFideId "24161918"]
[WhiteElo "1951"]
[BlackElo "2182"]
[Result "1-0"]
[Round "10"]
[TimeControl "180+2"]
[Date "2023.03.07"]
[WhiteClock "0:01:18"]
[BlackClock "0:00:17"]

1. e4 {[%clk 0:02:57]}  c6 {[%clk 0:03:00]} 2. d4 {[%clk 0:02:55]}  d5 {[%clk 0:03:01]} 3. e5 {[%clk 0:02:56]}  c5 {[%clk 0:03:01]} 4. c3 {[%clk 0:02:56]}  Nc6 {[%clk 0:03:02]} 5. Be2 {[%clk 0:02:55]}  cxd4 {[%clk 0:03:01]} 6. cxd4 {[%clk 0:02:55]}  Bf5 {[%clk 0:03:01]} 7. Nf3 {[%clk 0:02:55]}  e6 {[%clk 0:03:02]} 8. O-O {[%clk 0:02:55]}  Nge7 {[%clk 0:03:00]} 9. Nc3 {[%clk 0:02:39]}  h6 {[%clk 0:02:52]} 10. Na4 {[%clk 0:02:30]}  g5 {[%clk 0:02:25]} 11. Be3 {[%clk 0:02:24]}  Ng6 {[%clk 0:02:20]} 12. Rc1 {[%clk 0:02:18]}  Be7 {[%clk 0:02:04]} 13. Nc5 {[%clk 0:02:17]}  Qb6 {[%clk 0:01:58]} 14. Qa4 {[%clk 0:02:11]}  Bxc5 {[%clk 0:01:41]} 15. Rxc5 {[%clk 0:02:10]}  Qxb2 {[%clk 0:01:39]} 16. Rxc6 {[%clk 0:01:29]}  bxc6 {[%clk 0:01:28]} 17. Qxc6+ {[%clk 0:01:30]}  Ke7 {[%clk 0:00:43]} 18. Bc1 {[%clk 0:01:29]}  Qxa2 {[%clk 0:00:17]} 19. Qd6+ {[%clk 0:01:18]} 1-0


[Site "https://www.chess.com"]

[Event "Titled Tuesday Blitz March 07 Early 2023"]
[White "Ronka, Erik"]
[Black "Topalov, Aleksandar"]
[WhiteFideId "505080"]
[BlackFideId "925659"]
[WhiteElo "2264"]
[BlackElo "2151"]
[Result "1-0"]
[Round "10"]
[TimeControl "180+2"]
[Date "2023.03.07"]
[WhiteClock "0:00:03"]
[BlackClock "0:00:03"]

1. d4 {[%clk 0:03:00]}  Nf6 {[%clk 0:02:44]} 2. Bf4 {[%clk 0:03:01]}  b6 {[%clk 0:02:39]} 3. f3 {[%clk 0:02:51]}  d5 {[%clk 0:02:35]} 4. Nc3 {[%clk 0:02:45]}  Bb7 {[%clk 0:02:35]} 5. Qd2 {[%clk 0:02:39]}  e6 {[%clk 0:02:34]} 6. O-O-O {[%clk 0:02:36]}  Nbd7 {[%clk 0:02:33]} 7. e3 {[%clk 0:02:33]}  a6 {[%clk 0:02:32]} 8. g4 {[%clk 0:02:34]}  h6 {[%clk 0:02:30]} 9. h4 {[%clk 0:02:31]}  Bd6 {[%clk 0:02:29]} 10. Bh3 {[%clk 0:02:30]}  Qe7 {[%clk 0:02:22]} 11. g5 {[%clk 0:02:30]}  Nh5 {[%clk 0:02:22]} 12. Bxd6 {[%clk 0:02:22]}  Qxd6 {[%clk 0:02:21]} 13. Nge2 {[%clk 0:02:15]}  O-O-O {[%clk 0:02:20]} 14. f4 {[%clk 0:02:13]}  hxg5 {[%clk 0:02:15]} 15. hxg5 {[%clk 0:02:12]}  g6 {[%clk 0:02:14]} 16. Rh2 {[%clk 0:01:58]}  Ng7 {[%clk 0:02:13]} 17. Rdh1 {[%clk 0:01:57]}  Kb8 {[%clk 0:01:35]} 18. Ng1 {[%clk 0:01:55]}  a5 {[%clk 0:01:21]} 19. Nf3 {[%clk 0:01:48]}  Ba6 {[%clk 0:01:21]} 20. Ne5 {[%clk 0:01:41]}  Nxe5 {[%clk 0:01:18]} 21. fxe5 {[%clk 0:01:38]}  Qd7 {[%clk 0:01:16]} 22. Qg2 {[%clk 0:00:57]}  Qe7 {[%clk 0:01:09]} 23. Nd1 {[%clk 0:00:51]}  Rdg8 {[%clk 0:01:00]} 24. Nf2 {[%clk 0:00:47]}  Nf5 {[%clk 0:00:59]} 25. Qf3 {[%clk 0:00:37]}  Rh5 {[%clk 0:00:49]} 26. Bxf5 {[%clk 0:00:28]}  Rxh2 {[%clk 0:00:48]} 27. Rxh2 {[%clk 0:00:27]}  gxf5 {[%clk 0:00:48]} 28. Nh3 {[%clk 0:00:25]}  Rh8 {[%clk 0:00:46]} 29. Rg2 {[%clk 0:00:25]}  Bf1 {[%clk 0:00:26]} 30. Qxf1 {[%clk 0:00:11]}  Rxh3 {[%clk 0:00:26]} 31. Qf2 {[%clk 0:00:07]}  Qf8 {[%clk 0:00:17]} 32. a3 {[%clk 0:00:07]}  Qg7 {[%clk 0:00:14]} 33. Kb1 {[%clk 0:00:07]}  Rh5 {[%clk 0:00:10]} 34. Qg1 {[%clk 0:00:05]}  Qg6 {[%clk 0:00:10]} 35. Ka2 {[%clk 0:00:05]}  Rh3 {[%clk 0:00:09]} 36. Rg3 {[%clk 0:00:05]}  Rh4 {[%clk 0:00:08]} 37. Qf1 {[%clk 0:00:03]}  Qh5 {[%clk 0:00:06]} 38. Qb5 {[%clk 0:00:03]}  Kb7 {[%clk 0:00:05]} 39. Qd7 {[%clk 0:00:03]}  Qg6 {[%clk 0:00:03]} 40. Qe7 {[%clk 0:00:03]}  f4 {[%clk 0:00:03]} 41. exf4 {[%clk 0:00:02]}  Rxf4 {[%clk 0:00:03]} 42. Rc3 {[%clk 0:00:03]} 1-0


[Site "https://www.chess.com"]

[Event "Titled Tuesday Blitz March 07 Early 2023"]
[White "Ramirez Allo, Eduardo"]
[Black "Kostiukov, Alexandr"]
[WhiteFideId "2224178"]
[BlackFideId "14108100"]
[WhiteElo "2496"]
[BlackElo "2202"]
[Result "0-1"]
[Round "10"]
[TimeControl "180+2"]
[Date "2023.03.07"]
[WhiteClock "0:00:19"]
[BlackClock "0:00:14"]

1. d4 {[%clk 0:03:00]}  g6 {[%clk 0:02:59]} 2. Nf3 {[%clk 0:03:01]}  Bg7 {[%clk 0:02:58]} 3. c4 {[%clk 0:03:02]}  d6 {[%clk 0:02:58]} 4. g3 {[%clk 0:03:02]}  e5 {[%clk 0:02:58]} 5. dxe5 {[%clk 0:03:01]}  dxe5 {[%clk 0:02:59]} 6. Qxd8+ {[%clk 0:03:01]}  Kxd8 {[%clk 0:03:00]} 7. Bg2 {[%clk 0:03:01]}  f6 {[%clk 0:03:00]} 8. O-O {[%clk 0:03:01]}  Be6 {[%clk 0:03:00]} 9. b3 {[%clk 0:03:00]}  c6 {[%clk 0:03:00]} 10. Nc3 {[%clk 0:03:00]}  Nd7 {[%clk 0:03:00]} 11. Be3 {[%clk 0:02:59]}  Bh6 {[%clk 0:02:59]} 12. Bxh6 {[%clk 0:02:57]}  Nxh6 {[%clk 0:03:00]} 13. Rfd1 {[%clk 0:02:57]}  Ke7 {[%clk 0:03:00]} 14. Nd2 {[%clk 0:02:53]}  Nf7 {[%clk 0:02:59]} 15. Nde4 {[%clk 0:02:49]}  f5 {[%clk 0:02:51]} 16. Nd2 {[%clk 0:02:48]}  Rhd8 {[%clk 0:02:49]} 17. e3 {[%clk 0:02:45]}  e4 {[%clk 0:02:45]} 18. Bf1 {[%clk 0:02:30]}  Nfe5 {[%clk 0:02:43]} 19. Kg2 {[%clk 0:02:20]}  Nc5 {[%clk 0:02:37]} 20. h3 {[%clk 0:02:17]}  a5 {[%clk 0:02:37]} 21. f4 {[%clk 0:02:11]}  exf3+ {[%clk 0:02:14]} 22. Nxf3 {[%clk 0:02:12]}  Nxf3 {[%clk 0:02:09]} 23. Kxf3 {[%clk 0:02:13]}  Kf6 {[%clk 0:01:55]} 24. Rd4 {[%clk 0:01:56]}  Bf7 {[%clk 0:01:04]} 25. Rad1 {[%clk 0:01:53]}  Ne6 {[%clk 0:01:04]} 26. R4d2 {[%clk 0:01:43]}  Rxd2 {[%clk 0:01:02]} 27. Rxd2 {[%clk 0:01:44]}  Nc5 {[%clk 0:00:58]} 28. h4 {[%clk 0:01:22]}  h6 {[%clk 0:00:55]} 29. Bh3 {[%clk 0:01:16]}  Ke5 {[%clk 0:00:49]} 30. Ne2 {[%clk 0:00:58]}  g5 {[%clk 0:00:37]} 31. hxg5 {[%clk 0:00:53]}  hxg5 {[%clk 0:00:37]} 32. Bf1 {[%clk 0:00:47]}  Bh5+ {[%clk 0:00:26]} 33. Kg2 {[%clk 0:00:44]}  Rh8 {[%clk 0:00:19]} 34. Nd4 {[%clk 0:00:39]}  Ne4 {[%clk 0:00:17]} 35. Rd3 {[%clk 0:00:33]}  Bg4 {[%clk 0:00:17]} 36. Nf3+ {[%clk 0:00:21]}  Bxf3+ {[%clk 0:00:15]} 37. Kxf3 {[%clk 0:00:22]}  Rh2 {[%clk 0:00:16]} 38. g4 {[%clk 0:00:19]}  Rf2# {[%clk 0:00:14]} 0-1


[Site "https://www.chess.com"]

[Event "Titled Tuesday Blitz March 07 Early 2023"]
[White "Odegov, Artem"]
[Black "Fabris, Alberto"]
[WhiteFideId "34183644"]
[BlackFideId "801348"]
[WhiteElo "2300"]
[BlackElo "2179"]
[Result "1-0"]
[Round "10"]
[TimeControl "180+2"]
[Date "2023.03.07"]
[WhiteClock "0:01:25"]
[BlackClock "0:00:19"]

1. b3 {[%clk 0:02:54]}  e5 {[%clk 0:02:59]} 2. Bb2 {[%clk 0:02:53]}  Nc6 {[%clk 0:03:00]} 3. g3 {[%clk 0:02:52]}  d5 {[%clk 0:02:59]} 4. Bg2 {[%clk 0:02:52]}  Nf6 {[%clk 0:02:58]} 5. c4 {[%clk 0:02:51]}  Be7 {[%clk 0:02:53]} 6. Nf3 {[%clk 0:02:49]}  e4 {[%clk 0:02:50]} 7. Ne5 {[%clk 0:02:48]}  Nxe5 {[%clk 0:02:49]} 8. Bxe5 {[%clk 0:02:49]}  dxc4 {[%clk 0:02:43]} 9. bxc4 {[%clk 0:02:49]}  O-O {[%clk 0:02:41]} 10. O-O {[%clk 0:02:48]}  c6 {[%clk 0:02:35]} 11. Nc3 {[%clk 0:02:46]}  Bf5 {[%clk 0:02:35]} 12. Qb3 {[%clk 0:02:34]}  Qb6 {[%clk 0:02:31]} 13. Rab1 {[%clk 0:02:22]}  Qxb3 {[%clk 0:01:58]} 14. Rxb3 {[%clk 0:02:23]}  b6 {[%clk 0:01:45]} 15. Bxf6 {[%clk 0:02:20]}  Bxf6 {[%clk 0:01:44]} 16. Nxe4 {[%clk 0:02:20]}  Bxe4 {[%clk 0:01:43]} 17. Bxe4 {[%clk 0:02:21]}  Rac8 {[%clk 0:01:42]} 18. e3 {[%clk 0:02:20]}  c5 {[%clk 0:01:42]} 19. a4 {[%clk 0:02:18]}  Rfd8 {[%clk 0:01:40]} 20. Bd5 {[%clk 0:02:18]}  Kf8 {[%clk 0:01:33]} 21. Rfb1 {[%clk 0:02:12]}  Rd6 {[%clk 0:01:30]} 22. a5 {[%clk 0:02:12]}  Bd8 {[%clk 0:01:29]} 23. axb6 {[%clk 0:02:10]}  Bxb6 {[%clk 0:01:26]} 24. Ra3 {[%clk 0:02:09]}  Rc7 {[%clk 0:01:21]} 25. Kf1 {[%clk 0:02:09]}  Ke7 {[%clk 0:01:21]} 26. Ke2 {[%clk 0:02:08]}  g6 {[%clk 0:01:19]} 27. d3 {[%clk 0:02:07]}  f5 {[%clk 0:01:19]} 28. h4 {[%clk 0:01:59]}  Kf6 {[%clk 0:01:18]} 29. Raa1 {[%clk 0:01:56]}  Re7 {[%clk 0:01:17]} 30. h5 {[%clk 0:01:55]}  g5 {[%clk 0:01:15]} 31. f4 {[%clk 0:01:49]}  gxf4 {[%clk 0:01:14]} 32. gxf4 {[%clk 0:01:50]}  Rg7 {[%clk 0:01:13]} 33. Kf3 {[%clk 0:01:49]}  Rdd7 {[%clk 0:01:09]} 34. Rg1 {[%clk 0:01:48]}  Rxg1 {[%clk 0:01:03]} 35. Rxg1 {[%clk 0:01:49]}  a5 {[%clk 0:01:02]} 36. h6 {[%clk 0:01:46]}  a4 {[%clk 0:01:00]} 37. e4 {[%clk 0:01:37]}  fxe4+ {[%clk 0:00:59]} 38. dxe4 {[%clk 0:01:38]}  a3 {[%clk 0:00:54]} 39. e5+ {[%clk 0:01:37]}  Ke7 {[%clk 0:00:54]} 40. Rg7+ {[%clk 0:01:36]}  Kd8 {[%clk 0:00:55]} 41. Rg8+ {[%clk 0:01:37]}  Kc7 {[%clk 0:00:55]} 42. Ra8 {[%clk 0:01:38]}  Rd8 {[%clk 0:00:30]} 43. Rxa3 {[%clk 0:01:32]}  Rf8 {[%clk 0:00:24]} 44. Ra8 {[%clk 0:01:29]}  Rf5 {[%clk 0:00:19]} 45. Kg4 {[%clk 0:01:25]} 1-0


[Site "https://www.chess.com"]

[Event "Titled Tuesday Blitz March 07 Early 2023"]
[White "Kopczynski, Michal"]
[Black "Mouhamad, Joachim"]
[WhiteFideId "1124200"]
[BlackFideId "656410"]
[WhiteElo "2212"]
[BlackElo "2164"]
[Result "1-0"]
[Round "10"]
[TimeControl "180+2"]
[Date "2023.03.07"]
[WhiteClock "0:00:06"]
[BlackClock "0:00:16"]

1. e4 {[%clk 0:03:00]}  c5 {[%clk 0:02:59]} 2. d4 {[%clk 0:03:00]}  cxd4 {[%clk 0:02:59]} 3. c3 {[%clk 0:03:01]}  dxc3 {[%clk 0:02:59]} 4. Nxc3 {[%clk 0:03:02]}  Nc6 {[%clk 0:03:00]} 5. f4 {[%clk 0:03:02]}  e5 {[%clk 0:02:53]} 6. Nf3 {[%clk 0:03:03]}  Bb4 {[%clk 0:02:51]} 7. Bc4 {[%clk 0:03:02]}  Nf6 {[%clk 0:02:48]} 8. O-O {[%clk 0:03:02]}  O-O {[%clk 0:02:47]} 9. fxe5 {[%clk 0:02:59]}  Bc5+ {[%clk 0:02:46]} 10. Kh1 {[%clk 0:02:57]}  Ng4 {[%clk 0:02:47]} 11. Qe1 {[%clk 0:02:46]}  Ncxe5 {[%clk 0:02:45]} 12. Nxe5 {[%clk 0:02:44]}  Nxe5 {[%clk 0:02:46]} 13. Bb3 {[%clk 0:02:41]}  d6 {[%clk 0:02:46]} 14. Qg3 {[%clk 0:02:36]}  Be6 {[%clk 0:02:28]} 15. Bh6 {[%clk 0:02:03]}  Ng6 {[%clk 0:02:28]} 16. Bg5 {[%clk 0:01:53]}  Qd7 {[%clk 0:02:27]} 17. Ba4 {[%clk 0:01:47]}  Qc7 {[%clk 0:02:23]} 18. h4 {[%clk 0:01:45]}  h5 {[%clk 0:02:21]} 19. Bd1 {[%clk 0:01:43]}  Bg4 {[%clk 0:02:05]} 20. Bxg4 {[%clk 0:01:40]}  hxg4 {[%clk 0:02:06]} 21. Qxg4 {[%clk 0:01:38]}  Ne5 {[%clk 0:02:06]} 22. Qh5 {[%clk 0:01:34]}  f6 {[%clk 0:01:49]} 23. Bf4 {[%clk 0:01:04]}  Qf7 {[%clk 0:01:48]} 24. Qxf7+ {[%clk 0:01:02]}  Kxf7 {[%clk 0:01:45]} 25. Nd5 {[%clk 0:00:58]}  Rh8 {[%clk 0:01:42]} 26. g3 {[%clk 0:00:46]}  Rac8 {[%clk 0:01:40]} 27. Rac1 {[%clk 0:00:45]}  Bd4 {[%clk 0:01:37]} 28. b3 {[%clk 0:00:30]}  Ke6 {[%clk 0:01:27]} 29. Kg2 {[%clk 0:00:29]}  Nd3 {[%clk 0:01:20]} 30. Rcd1 {[%clk 0:00:26]}  Rc2+ {[%clk 0:01:20]} 31. Kf3 {[%clk 0:00:24]}  Ne5+ {[%clk 0:01:15]} 32. Bxe5 {[%clk 0:00:21]}  dxe5 {[%clk 0:01:16]} 33. a4 {[%clk 0:00:18]}  Rhc8 {[%clk 0:01:12]} 34. g4 {[%clk 0:00:17]}  Rb2 {[%clk 0:01:10]} 35. Rd3 {[%clk 0:00:17]}  Rcc2 {[%clk 0:01:10]} 36. g5 {[%clk 0:00:17]}  Rh2 {[%clk 0:01:09]} 37. gxf6 {[%clk 0:00:16]}  gxf6 {[%clk 0:01:08]} 38. Kg4 {[%clk 0:00:16]}  Rbg2+ {[%clk 0:01:03]} 39. Rg3 {[%clk 0:00:16]}  Rf2 {[%clk 0:00:53]} 40. Rxf2 {[%clk 0:00:15]}  Bxf2 {[%clk 0:00:48]} 41. Rh3 {[%clk 0:00:14]}  Rxh3 {[%clk 0:00:46]} 42. Kxh3 {[%clk 0:00:15]}  f5 {[%clk 0:00:47]} 43. Nc7+ {[%clk 0:00:04]}  Kd7 {[%clk 0:00:47]} 44. Nd5 {[%clk 0:00:01]}  fxe4 {[%clk 0:00:44]} 45. Nf6+ {[%clk 0:00:02]}  Ke6 {[%clk 0:00:43]} 46. Nxe4 {[%clk 0:00:03]}  Be3 {[%clk 0:00:39]} 47. Kg4 {[%clk 0:00:03]}  Kd5 {[%clk 0:00:35]} 48. Kf5 {[%clk 0:00:04]}  Kd4 {[%clk 0:00:35]} 49. h5 {[%clk 0:00:05]}  Bc1 {[%clk 0:00:34]} 50. Ng5 {[%clk 0:00:05]}  Bxg5 {[%clk 0:00:19]} 51. Kxg5 {[%clk 0:00:06]}  e4 {[%clk 0:00:20]} 52. h6 {[%clk 0:00:06]}  e3 {[%clk 0:00:20]} 53. h7 {[%clk 0:00:07]}  e2 {[%clk 0:00:21]} 54. h8=Q+ {[%clk 0:00:08]}  Kd3 {[%clk 0:00:17]} 55. Qe5 {[%clk 0:00:05]}  Kd2 {[%clk 0:00:16]} 56. Qd5+ {[%clk 0:00:06]} 1-0


[Site "https://www.chess.com"]

[Event "Titled Tuesday Blitz March 07 Early 2023"]
[White "Petrova, Irina"]
[Black "Kozin, Yuri"]
[WhiteFideId "14124122"]
[BlackFideId "4129920"]
[WhiteElo "2084"]
[BlackElo "2503"]
[Result "1-0"]
[Round "10"]
[TimeControl "180+2"]
[Date "2023.03.07"]
[WhiteClock "0:00:05"]
[BlackClock "0:00:08"]

1. e4 {[%clk 0:03:00]}  c5 {[%clk 0:03:00]} 2. Nf3 {[%clk 0:02:57]}  e6 {[%clk 0:03:00]} 3. c4 {[%clk 0:02:57]}  Nc6 {[%clk 0:02:59]} 4. Nc3 {[%clk 0:02:57]}  d6 {[%clk 0:02:59]} 5. d4 {[%clk 0:02:55]}  cxd4 {[%clk 0:02:59]} 6. Nxd4 {[%clk 0:02:56]}  Nf6 {[%clk 0:02:59]} 7. Be2 {[%clk 0:02:56]}  Be7 {[%clk 0:02:59]} 8. O-O {[%clk 0:02:56]}  O-O {[%clk 0:02:59]} 9. Be3 {[%clk 0:02:56]}  Bd7 {[%clk 0:02:58]} 10. Qd2 {[%clk 0:02:56]}  Nxd4 {[%clk 0:02:58]} 11. Bxd4 {[%clk 0:02:56]}  Bc6 {[%clk 0:02:58]} 12. f3 {[%clk 0:02:56]}  a6 {[%clk 0:02:54]} 13. Rfd1 {[%clk 0:02:51]}  Rc8 {[%clk 0:02:53]} 14. Rac1 {[%clk 0:02:50]}  Nd7 {[%clk 0:02:45]} 15. Kh1 {[%clk 0:02:27]}  Ne5 {[%clk 0:02:39]} 16. b3 {[%clk 0:02:27]}  Re8 {[%clk 0:02:31]} 17. Qe3 {[%clk 0:02:26]}  Nd7 {[%clk 0:02:28]} 18. Qd2 {[%clk 0:02:23]}  Bg5 {[%clk 0:02:26]} 19. f4 {[%clk 0:02:12]}  Be7 {[%clk 0:02:26]} 20. Bf3 {[%clk 0:02:12]}  e5 {[%clk 0:02:25]} 21. Be3 {[%clk 0:02:04]}  exf4 {[%clk 0:02:15]} 22. Bxf4 {[%clk 0:02:05]}  Ne5 {[%clk 0:02:15]} 23. Nd5 {[%clk 0:01:56]}  Nxf3 {[%clk 0:02:12]} 24. gxf3 {[%clk 0:01:57]}  Bxd5 {[%clk 0:02:05]} 25. Qxd5 {[%clk 0:01:55]}  Rc5 {[%clk 0:01:58]} 26. Qd4 {[%clk 0:01:44]}  Rh5 {[%clk 0:01:52]} 27. Rg1 {[%clk 0:01:38]}  Bf8 {[%clk 0:01:46]} 28. Rcd1 {[%clk 0:01:34]}  Qa5 {[%clk 0:01:21]} 29. a4 {[%clk 0:01:14]}  g6 {[%clk 0:01:13]} 30. Rg2 {[%clk 0:01:12]}  Qb4 {[%clk 0:01:01]} 31. Qd3 {[%clk 0:00:59]}  Re6 {[%clk 0:00:56]} 32. Bd2 {[%clk 0:00:54]}  Qc5 {[%clk 0:00:52]} 33. Be3 {[%clk 0:00:54]}  Qc7 {[%clk 0:00:50]} 34. Bf4 {[%clk 0:00:50]}  Qb6 {[%clk 0:00:46]} 35. Rg5 {[%clk 0:00:46]}  Rxg5 {[%clk 0:00:32]} 36. Bxg5 {[%clk 0:00:46]}  Qf2 {[%clk 0:00:32]} 37. Qe3 {[%clk 0:00:37]}  Qc2 {[%clk 0:00:30]} 38. Rc1 {[%clk 0:00:35]}  Qb2 {[%clk 0:00:28]} 39. Qc3 {[%clk 0:00:32]}  Qf2 {[%clk 0:00:25]} 40. Qe3 {[%clk 0:00:31]}  Qa2 {[%clk 0:00:23]} 41. Rd1 {[%clk 0:00:29]}  Bg7 {[%clk 0:00:18]} 42. Bf4 {[%clk 0:00:27]}  Qa3 {[%clk 0:00:13]} 43. Qd3 {[%clk 0:00:23]}  Qb4 {[%clk 0:00:13]} 44. Bxd6 {[%clk 0:00:20]}  Qb6 {[%clk 0:00:11]} 45. Bg3 {[%clk 0:00:19]}  Re8 {[%clk 0:00:10]} 46. Kg2 {[%clk 0:00:12]}  h5 {[%clk 0:00:10]} 47. h4 {[%clk 0:00:11]}  Qf6 {[%clk 0:00:11]} 48. Rd2 {[%clk 0:00:10]}  Qa1 {[%clk 0:00:11]} 49. Rd1 {[%clk 0:00:09]}  Qa3 {[%clk 0:00:10]} 50. Rd2 {[%clk 0:00:09]}  Bf6 {[%clk 0:00:10]} 51. Qd7 {[%clk 0:00:08]}  Rd8 {[%clk 0:00:06]} 52. Qxd8+ {[%clk 0:00:04]}  Bxd8 {[%clk 0:00:07]} 53. Rxd8+ {[%clk 0:00:05]}  Kg7 {[%clk 0:00:07]} 54. Be5+ {[%clk 0:00:05]}  f6 {[%clk 0:00:08]} 55. Rd7+ {[%clk 0:00:05]}  Kf8 {[%clk 0:00:08]} 56. Bd6+ {[%clk 0:00:05]} 1-0


[Site "https://www.chess.com"]